[Event "*** Titled Tuesday Blitz"]
[Site "Chess.com"]
[Date "2019.05.07"]
[Round "6"]
[White "GMsKoRPioN"]
[Black "RojonR"]
[Result "1-0"]
[WhiteElo "2599"]
[BlackElo "2425"]
[TimeControl "180+2"]
[EndTime "14:26:07 PDT"]
[Termination "GMsKoRPioN won by resignation"]

1. d4 {[%clk 0:02:58.7]} 1... Nf6 {[%clk 0:02:58.8]} 2. c4 {[%clk 0:02:59.9]}
2... e5 {[%clk 0:02:57.8]} 3. dxe5 {[%clk 0:03:00.5]} 3... Ng4 {[%clk 0:02:58]}
4. e4 {[%clk 0:03:01.9]} 4... Nxe5 {[%clk 0:02:58]} 5. f4 {[%clk 0:03:03]} 5...
Nec6 {[%clk 0:02:58.5]} 6. a3 {[%clk 0:03:03.6]} 6... a5 {[%clk 0:02:58.9]} 7.
Be3 {[%clk 0:03:03.4]} 7... Na6 {[%clk 0:02:59.3]} 8. Nf3 {[%clk 0:03:01.6]}
8... Bc5 {[%clk 0:02:59.3]} 9. Qd2 {[%clk 0:02:51.2]} 9... O-O {[%clk
0:02:54.6]} 10. Nc3 {[%clk 0:02:51.6]} 10... d6 {[%clk 0:02:52.6]} 11. Bd3
{[%clk 0:02:39.7]} 11... Re8 {[%clk 0:02:43.1]} 12. O-O {[%clk 0:02:32.6]} 12...
Bxe3+ {[%clk 0:02:39.1]} 13. Qxe3 {[%clk 0:02:34.4]} 13... Nc5 {[%clk
0:02:39.8]} 14. Bc2 {[%clk 0:02:22.5]} 14... Be6 {[%clk 0:02:17.6]} 15. Nd5
{[%clk 0:02:14.9]} 15... Ne7 {[%clk 0:02:12.7]} 16. Ng5 {[%clk 0:02:01.5]} 16...
Bxd5 {[%clk 0:01:42.4]} 17. exd5 {[%clk 0:01:56.1]} 17... h6 {[%clk 0:01:37.9]}
18. Qh3 {[%clk 0:01:53]} 18... Ng6 {[%clk 0:01:29.7]} 19. Nxf7 {[%clk
0:01:33.8]} 19... Kxf7 {[%clk 0:01:31.6]} 20. Qh5 {[%clk 0:01:34.9]} 20... Qf6
{[%clk 0:01:29.6]} 21. f5 {[%clk 0:01:33.7]} 21... Kg8 {[%clk 0:01:25.4]} 22.
Qxg6 {[%clk 0:01:29.6]} 22... Qxg6 {[%clk 0:01:23.4]} 23. fxg6 {[%clk
0:01:31.5]} 23... Re2 {[%clk 0:01:24.5]} 24. Rf2 {[%clk 0:01:30.1]} 24... Rae8
{[%clk 0:01:15.9]} 25. Raf1 {[%clk 0:01:30.5]} 25... Nd7 {[%clk 0:01:12.1]} 26.
Bf5 {[%clk 0:01:23.2]} 26... Rxf2 {[%clk 0:01:02.9]} 27. Rxf2 {[%clk 0:01:22.3]}
27... Nf8 {[%clk 0:00:56.3]} 28. Kf1 {[%clk 0:01:19.6]} 28... Re3 {[%clk
0:00:52.6]} 29. g4 {[%clk 0:01:17.1]} 29... a4 {[%clk 0:00:48.2]} 30. h4 {[%clk
0:01:17.1]} 30... c6 {[%clk 0:00:43]} 31. Re2 {[%clk 0:01:17.4]} 31... Rf3+
{[%clk 0:00:29.2]} 32. Kg2 {[%clk 0:01:17.3]} 32... Rf4 {[%clk 0:00:30.3]} 33.
Re8 {[%clk 0:01:08.4]} 33... cxd5 {[%clk 0:00:29.8]} 34. cxd5 {[%clk 0:01:08.7]}
34... h5 {[%clk 0:00:29.9]} 35. Kg3 {[%clk 0:01:05.7]} 35... Rf1 {[%clk
0:00:29.9]} 36. Be6+ {[%clk 0:01:06.8]} 36... Kh8 {[%clk 0:00:30.8]} 37. Bf7
{[%clk 0:01:04.6]} 1-0

[Event "*** Titled Tuesday Blitz"]
[Site "Chess.com"]
[Date "2019.05.07"]
[Round "6"]
[White "Jenia84"]
[Black "Simoncelli15"]
[Result "0-1"]
[WhiteElo "2251"]
[BlackElo "2280"]
[TimeControl "180+2"]
[EndTime "14:26:10 PDT"]
[Termination "Simoncelli15 won by resignation"]

1. e4 {[%clk 0:03:00.3]} 1... e6 {[%clk 0:03:00.6]} 2. d4 {[%clk 0:03:00.6]}
2... d5 {[%clk 0:03:01.8]} 3. Bd3 {[%clk 0:03:01.2]} 3... dxe4 {[%clk
0:03:02.4]} 4. Bxe4 {[%clk 0:03:02.2]} 4... Nf6 {[%clk 0:03:03.7]} 5. Bf3 {[%clk
0:03:03.7]} 5... c5 {[%clk 0:03:04.7]} 6. Ne2 {[%clk 0:03:04.6]} 6... Nc6 {[%clk
0:03:02.9]} 7. Be3 {[%clk 0:03:06]} 7... cxd4 {[%clk 0:03:02.4]} 8. Nxd4 {[%clk
0:03:06.9]} 8... Ne5 {[%clk 0:03:03.9]} 9. Nc3 {[%clk 0:03:04]} 9... a6 {[%clk
0:03:05.2]} 10. Qe2 {[%clk 0:03:04.4]} 10... Nxf3+ {[%clk 0:03:06]} 11. Qxf3
{[%clk 0:03:05.1]} 11... e5 {[%clk 0:03:07.4]} 12. Nf5 {[%clk 0:02:19.7]} 12...
e4 {[%clk 0:02:13]} 13. Nxe4 {[%clk 0:02:13.4]} 13... Qa5+ {[%clk 0:02:11.1]}
14. c3 {[%clk 0:02:02.5]} 14... Qxf5 {[%clk 0:02:09.9]} 15. Nxf6+ {[%clk
0:02:02.8]} 15... Qxf6 {[%clk 0:01:59.9]} 16. Qe4+ {[%clk 0:01:58.9]} 16... Qe6
{[%clk 0:01:58.2]} 17. Qd4 {[%clk 0:01:48.7]} 17... Be7 {[%clk 0:01:53.2]} 18.
Qxg7 {[%clk 0:01:45.8]} 18... Bf6 {[%clk 0:01:46.1]} 19. Qg3 {[%clk 0:01:43.7]}
19... Bd7 {[%clk 0:01:46]} 20. O-O {[%clk 0:01:36.2]} 20... Be5 {[%clk
0:01:28.6]} 21. Bf4 {[%clk 0:01:29]} 21... Bxf4 {[%clk 0:01:28.6]} 22. Qxf4
{[%clk 0:01:27.5]} 22... O-O {[%clk 0:01:28.3]} 23. Rad1 {[%clk 0:01:13.6]}
23... Bc6 {[%clk 0:01:25.8]} 24. Rd3 {[%clk 0:01:08.9]} 24... f6 {[%clk
0:01:22.6]} 25. Re3 {[%clk 0:01:06]} 25... Qd5 {[%clk 0:01:21.6]} 26. Rg3+
{[%clk 0:01:01.1]} 26... Kh8 {[%clk 0:01:18.1]} 27. Qh6 {[%clk 0:00:59.6]} 27...
Rf7 {[%clk 0:01:09.9]} 28. Re1 {[%clk 0:00:57.8]} 28... Rg8 {[%clk 0:01:00.1]}
29. Rxg8+ {[%clk 0:00:54.4]} 29... Kxg8 {[%clk 0:01:02]} 30. Qh3 {[%clk
0:00:54.4]} 30... h5 {[%clk 0:00:52.3]} 31. f3 {[%clk 0:00:50.1]} 31... Rg7
{[%clk 0:00:50.1]} 32. Qc8+ {[%clk 0:00:45.5]} 32... Kh7 {[%clk 0:00:49.9]} 33.
Qf8 {[%clk 0:00:28.8]} 33... Rxg2+ {[%clk 0:00:46.9]} 34. Kh1 {[%clk 0:00:23.3]}
34... Rg7 {[%clk 0:00:36.6]} 0-1

[Event "*** Titled Tuesday Blitz"]
[Site "Chess.com"]
[Date "2019.05.07"]
[Round "6"]
[White "jacky72"]
[Black "pedromartinez91"]
[Result "1-0"]
[WhiteElo "2636"]
[BlackElo "2512"]
[TimeControl "180+2"]
[EndTime "14:26:17 PDT"]
[Termination "jacky72 won by resignation"]

1. d4 {[%clk 0:03:01.9]} 1... Nf6 {[%clk 0:02:33.7]} 2. c4 {[%clk 0:03:02.7]}
2... c5 {[%clk 0:02:34.5]} 3. d5 {[%clk 0:03:03.8]} 3... e6 {[%clk 0:02:35.2]}
4. Nc3 {[%clk 0:03:04.8]} 4... exd5 {[%clk 0:02:36.3]} 5. cxd5 {[%clk
0:03:06.7]} 5... Bd6 {[%clk 0:02:37.8]} 6. Bg5 {[%clk 0:03:02.8]} 6... O-O
{[%clk 0:02:37.4]} 7. e4 {[%clk 0:03:03.4]} 7... Re8 {[%clk 0:02:37]} 8. Qc2
{[%clk 0:02:51.5]} 8... h6 {[%clk 0:02:30]} 9. Bh4 {[%clk 0:02:42.4]} 9... Be5
{[%clk 0:02:30]} 10. f3 {[%clk 0:02:42.4]} 10... d6 {[%clk 0:02:26.9]} 11. Bb5
{[%clk 0:02:41.1]} 11... Bd7 {[%clk 0:02:25.3]} 12. Bxd7 {[%clk 0:02:40.9]}
12... Nbxd7 {[%clk 0:02:26]} 13. Nge2 {[%clk 0:02:42.2]} 13... b5 {[%clk
0:02:02]} 14. Nxb5 {[%clk 0:02:40.6]} 14... Rb8 {[%clk 0:02:02.4]} 15. Nbc3
{[%clk 0:02:40.5]} 15... Qb6 {[%clk 0:02:02.7]} 16. Rb1 {[%clk 0:02:41.8]} 16...
c4 {[%clk 0:01:59.7]} 17. Bf2 {[%clk 0:02:42.1]} 17... Nc5 {[%clk 0:02:00.7]}
18. O-O {[%clk 0:02:42.8]} 18... Qa5 {[%clk 0:02:00]} 19. Bxc5 {[%clk
0:02:40.5]} 19... Qxc5+ {[%clk 0:02:00.4]} 20. Kh1 {[%clk 0:02:42.4]} 20... Rb4
{[%clk 0:01:53]} 21. b3 {[%clk 0:02:20.8]} 21... cxb3 {[%clk 0:01:50.8]} 22.
Rxb3 {[%clk 0:02:22.7]} 22... Rc4 {[%clk 0:01:50]} 23. Qd3 {[%clk 0:02:19.8]}
23... Rc8 {[%clk 0:01:45.8]} 24. Nd1 {[%clk 0:02:19]} 24... g5 {[%clk
0:01:25.2]} 25. Ne3 {[%clk 0:02:15.6]} 25... Ra4 {[%clk 0:01:17.4]} 26. Rc1
{[%clk 0:02:06.5]} 26... Qxc1+ {[%clk 0:01:13.1]} 27. Nxc1 {[%clk 0:02:08.4]}
27... Rxc1+ {[%clk 0:01:14.1]} 28. Nf1 {[%clk 0:02:09]} 28... Rd4 {[%clk
0:01:09]} 29. Qa6 {[%clk 0:02:03.9]} 29... Rdd1 {[%clk 0:01:09.4]} 30. g3 {[%clk
0:02:02.9]} 30... Rxf1+ {[%clk 0:00:59.2]} 31. Kg2 {[%clk 0:02:04]} 31... h5
{[%clk 0:00:56.6]} 32. Qxf1 {[%clk 0:02:00.4]} 32... Rxf1 {[%clk 0:00:57.4]} 33.
Kxf1 {[%clk 0:02:02.3]} 33... Bd4 {[%clk 0:00:56.9]} 34. Ke2 {[%clk 0:01:59.2]}
34... Bg1 {[%clk 0:00:39.3]} 35. h3 {[%clk 0:01:55.3]} 35... g4 {[%clk
0:00:40.5]} 36. hxg4 {[%clk 0:01:54.6]} 36... hxg4 {[%clk 0:00:41.5]} 37. Rb8+
{[%clk 0:01:54.7]} 37... Kg7 {[%clk 0:00:42.3]} 38. Rd8 {[%clk 0:01:55.7]} 38...
gxf3+ {[%clk 0:00:37.2]} 39. Kxf3 {[%clk 0:01:55.4]} 39... Bc5 {[%clk
0:00:38.8]} 40. Rc8 {[%clk 0:01:56.1]} 40... Nd7 {[%clk 0:00:39.2]} 41. Kf4
{[%clk 0:01:55.7]} 41... Kf6 {[%clk 0:00:39.4]} 42. g4 {[%clk 0:01:55.3]} 42...
Ne5 {[%clk 0:00:40.4]} 43. g5+ {[%clk 0:01:56.2]} 43... Kg6 {[%clk 0:00:41.6]}
44. Rg8+ {[%clk 0:01:57.4]} 44... Kh7 {[%clk 0:00:42.7]} 45. Rb8 {[%clk
0:01:56.4]} 45... Kg6 {[%clk 0:00:41.2]} 46. Rg8+ {[%clk 0:01:56.6]} 46... Kh7
{[%clk 0:00:42.5]} 47. Rc8 {[%clk 0:01:57.9]} 47... Kg7 {[%clk 0:00:42]} 48. a4
{[%clk 0:01:58.3]} 48... Nd7 {[%clk 0:00:38.1]} 49. a5 {[%clk 0:01:55.7]} 49...
Ne5 {[%clk 0:00:39.2]} 50. a6 {[%clk 0:01:55.1]} 50... Ng6+ {[%clk 0:00:40.5]}
51. Kg4 {[%clk 0:01:54.8]} 51... Ne5+ {[%clk 0:00:39.1]} 52. Kf5 {[%clk
0:01:55.8]} 52... Ng6 {[%clk 0:00:38.9]} 53. Rc7 {[%clk 0:01:54.3]} 53... Nh4+
{[%clk 0:00:40]} 54. Kg4 {[%clk 0:01:54.9]} 54... Ng6 {[%clk 0:00:40.9]} 55. Kf5
{[%clk 0:01:56]} 55... Ne5 {[%clk 0:00:42.3]} 56. Rxc5 {[%clk 0:01:56]} 56...
dxc5 {[%clk 0:00:39.4]} 57. Kxe5 {[%clk 0:01:57.9]} 57... Kf8 {[%clk 0:00:40.7]}
58. d6 {[%clk 0:01:57.2]} 58... Ke8 {[%clk 0:00:41.2]} 59. Kd5 {[%clk
0:01:58.5]} 59... c4 {[%clk 0:00:41.8]} 60. Kxc4 {[%clk 0:01:58.8]} 60... Kd7
{[%clk 0:00:43.7]} 61. Kd5 {[%clk 0:01:59.9]} 1-0

[Event "*** Titled Tuesday Blitz"]
[Site "Chess.com"]
[Date "2019.05.07"]
[Round "6"]
[White "mouseWLZ"]
[Black "Babas"]
[Result "1-0"]
[WhiteElo "2599"]
[BlackElo "2427"]
[TimeControl "180+2"]
[EndTime "14:26:18 PDT"]
[Termination "mouseWLZ won by checkmate"]

1. d4 {[%clk 0:03:01.9]} 1... Nf6 {[%clk 0:02:57.1]} 2. Bf4 {[%clk 0:03:02.8]}
2... c5 {[%clk 0:02:55.6]} 3. d5 {[%clk 0:03:03.2]} 3... d6 {[%clk 0:02:45.4]}
4. Nc3 {[%clk 0:03:04.2]} 4... g6 {[%clk 0:02:46.2]} 5. e4 {[%clk 0:03:04.9]}
5... Bg7 {[%clk 0:02:47.3]} 6. Nf3 {[%clk 0:03:05.9]} 6... O-O {[%clk
0:02:42.8]} 7. Bd3 {[%clk 0:03:06.9]} 7... Bg4 {[%clk 0:02:22.1]} 8. O-O {[%clk
0:03:06.7]} 8... Nbd7 {[%clk 0:02:19.3]} 9. h3 {[%clk 0:03:04.7]} 9... Bxf3
{[%clk 0:02:20.1]} 10. Qxf3 {[%clk 0:03:06.6]} 10... Ne5 {[%clk 0:02:21.1]} 11.
Bxe5 {[%clk 0:03:07.2]} 11... dxe5 {[%clk 0:02:21.7]} 12. Qe3 {[%clk 0:03:07.9]}
12... Rc8 {[%clk 0:02:12.6]} 13. a4 {[%clk 0:03:05]} 13... Ne8 {[%clk
0:02:11.3]} 14. Rfd1 {[%clk 0:02:55]} 14... Nd6 {[%clk 0:02:11.8]} 15. Nb5
{[%clk 0:02:55.1]} 15... a6 {[%clk 0:02:07.1]} 16. Na3 {[%clk 0:02:55.6]} 16...
c4 {[%clk 0:01:51.9]} 17. Bf1 {[%clk 0:02:56]} 17... f5 {[%clk 0:01:51]} 18. f3
{[%clk 0:02:56.4]} 18... h5 {[%clk 0:01:28.9]} 19. Rab1 {[%clk 0:02:49.3]} 19...
Kh7 {[%clk 0:01:26.7]} 20. b3 {[%clk 0:02:50]} 20... c3 {[%clk 0:01:21.6]} 21.
Bd3 {[%clk 0:02:46.6]} 21... f4 {[%clk 0:01:02.9]} 22. Qa7 {[%clk 0:02:38.4]}
22... g5 {[%clk 0:00:59.6]} 23. Nc4 {[%clk 0:02:38.8]} 23... g4 {[%clk
0:00:47.2]} 24. hxg4 {[%clk 0:02:39.7]} 24... hxg4 {[%clk 0:00:48]} 25. Kf2
{[%clk 0:02:40.9]} 25... g3+ {[%clk 0:00:47.6]} 26. Ke2 {[%clk 0:02:40.5]} 26...
Rc7 {[%clk 0:00:40.9]} 27. Rh1+ {[%clk 0:02:40.2]} 27... Kg6 {[%clk 0:00:41.4]}
28. Qb6 {[%clk 0:02:40]} 28... Bf6 {[%clk 0:00:29.6]} 29. Rh3 {[%clk 0:02:35.5]}
29... Rh8 {[%clk 0:00:29.7]} 30. Rbh1 {[%clk 0:02:35.1]} 30... Rxh3 {[%clk
0:00:30.2]} 31. Rxh3 {[%clk 0:02:37]} 31... Nxc4 {[%clk 0:00:26.1]} 32. Bxc4
{[%clk 0:02:33.4]} 32... Qd6 {[%clk 0:00:26.1]} 33. Qxd6 {[%clk 0:02:13]} 33...
exd6 {[%clk 0:00:28]} 34. Kd3 {[%clk 0:02:13.9]} 34... Rh7 {[%clk 0:00:11.4]}
35. Rxh7 {[%clk 0:02:14.2]} 35... Kxh7 {[%clk 0:00:13.3]} 36. b4 {[%clk
0:02:13.1]} 36... a5 {[%clk 0:00:11.1]} 37. bxa5 {[%clk 0:02:13.2]} 37... Bd8
{[%clk 0:00:12.5]} 38. a6 {[%clk 0:02:14]} 38... bxa6 {[%clk 0:00:13.5]} 39.
Bxa6 {[%clk 0:02:15.9]} 39... Kg7 {[%clk 0:00:09.8]} 40. Kxc3 {[%clk 0:02:15.9]}
40... Kf8 {[%clk 0:00:10.7]} 41. Kb4 {[%clk 0:02:16.4]} 41... Bb6 {[%clk
0:00:12.3]} 42. Kb5 {[%clk 0:02:16.7]} 42... Be3 {[%clk 0:00:12]} 43. a5 {[%clk
0:02:17.1]} 43... Ke7 {[%clk 0:00:13.9]} 44. Bc8 {[%clk 0:02:15.7]} 44... Kd8
{[%clk 0:00:15]} 45. Kc6 {[%clk 0:02:10.9]} 45... Kxc8 {[%clk 0:00:12]} 46. Kxd6
{[%clk 0:02:10.3]} 46... Bd4 {[%clk 0:00:13.3]} 47. c4 {[%clk 0:02:10.3]} 47...
Kb8 {[%clk 0:00:09.1]} 48. c5 {[%clk 0:02:09.1]} 48... Kc8 {[%clk 0:00:03.1]}
49. a6 {[%clk 0:02:07.2]} 49... Kb8 {[%clk 0:00:04.5]} 50. Kc6 {[%clk
0:02:06.2]} 50... Kc8 {[%clk 0:00:05.4]} 51. d6 {[%clk 0:02:07.2]} 51... Kb8
{[%clk 0:00:06.2]} 52. d7 {[%clk 0:02:08]} 52... Bxc5 {[%clk 0:00:07.2]} 53.
d8=Q+ {[%clk 0:02:09.3]} 53... Ka7 {[%clk 0:00:08.2]} 54. Qc7+ {[%clk
0:02:08.4]} 54... Kxa6 {[%clk 0:00:09.6]} 55. Qb7+ {[%clk 0:02:10]} 55... Ka5
{[%clk 0:00:09.8]} 56. Qb5# {[%clk 0:02:11.9]} 1-0

[Event "*** Titled Tuesday Blitz"]
[Site "Chess.com"]
[Date "2019.05.07"]
[Round "6"]
[White "DrBergerBerger"]
[Black "Casper_Schoppen"]
[Result "0-1"]
[WhiteElo "2429"]
[BlackElo "2665"]
[TimeControl "180+2"]
[EndTime "14:26:22 PDT"]
[Termination "Casper_Schoppen won by resignation"]

1. e4 {[%clk 0:03:01.9]} 1... c5 {[%clk 0:02:55.7]} 2. Nc3 {[%clk 0:03:02.1]}
2... Nc6 {[%clk 0:02:54.4]} 3. Bb5 {[%clk 0:03:00.1]} 3... Nd4 {[%clk
0:02:43.6]} 4. Nf3 {[%clk 0:02:57.4]} 4... Nxb5 {[%clk 0:02:43.3]} 5. Nxb5
{[%clk 0:02:58.7]} 5... d6 {[%clk 0:02:41.6]} 6. d4 {[%clk 0:02:56]} 6... a6
{[%clk 0:02:34.2]} 7. Nc3 {[%clk 0:02:56.1]} 7... cxd4 {[%clk 0:02:33.6]} 8.
Qxd4 {[%clk 0:02:58]} 8... e5 {[%clk 0:02:26.4]} 9. Qd3 {[%clk 0:02:55.8]} 9...
h6 {[%clk 0:02:25.5]} 10. Be3 {[%clk 0:02:47.8]} 10... Nf6 {[%clk 0:02:23.7]}
11. O-O-O {[%clk 0:02:47.2]} 11... Be6 {[%clk 0:02:20.3]} 12. Nd2 {[%clk
0:02:03.3]} 12... Rc8 {[%clk 0:02:14.5]} 13. f4 {[%clk 0:01:58.1]} 13... Qc7
{[%clk 0:01:47.9]} 14. f5 {[%clk 0:01:40.1]} 14... Bc4 {[%clk 0:01:47.7]} 15.
Nxc4 {[%clk 0:01:40]} 15... Qxc4 {[%clk 0:01:49.1]} 16. Rhe1 {[%clk 0:01:04.4]}
16... Qxd3 {[%clk 0:01:39.5]} 17. Rxd3 {[%clk 0:01:01.8]} 17... Be7 {[%clk
0:01:29.5]} 18. b3 {[%clk 0:00:51.9]} 18... Kd7 {[%clk 0:01:18.4]} 19. Kb2
{[%clk 0:00:51.2]} 19... Rxc3 {[%clk 0:01:09.9]} 20. Rxc3 {[%clk 0:00:43.3]}
20... Nxe4 {[%clk 0:01:11]} 21. Rd3 {[%clk 0:00:43.8]} 21... b5 {[%clk
0:00:59.3]} 22. a3 {[%clk 0:00:36.9]} 22... Nf6 {[%clk 0:00:57.7]} 23. Bf2
{[%clk 0:00:28.9]} 23... Kc6 {[%clk 0:00:49]} 24. Bh4 {[%clk 0:00:22.9]} 24...
Rd8 {[%clk 0:00:32.2]} 25. c3 {[%clk 0:00:19.4]} 25... Ng8 {[%clk 0:00:27.4]}
26. Bf2 {[%clk 0:00:17.5]} 26... Bf6 {[%clk 0:00:25.9]} 27. Kc2 {[%clk
0:00:17.1]} 27... d5 {[%clk 0:00:25.6]} 28. Bg3 {[%clk 0:00:16.8]} 28... e4
{[%clk 0:00:26]} 29. Rdd1 {[%clk 0:00:18.5]} 29... h5 {[%clk 0:00:24.8]} 30. Bf2
{[%clk 0:00:19.5]} 30... Nh6 {[%clk 0:00:24.4]} 31. Bd4 {[%clk 0:00:19.2]} 31...
Bxd4 {[%clk 0:00:24.5]} 32. Rxd4 {[%clk 0:00:19.8]} 32... Nxf5 {[%clk
0:00:25.5]} 33. Rdd1 {[%clk 0:00:21.7]} 33... Rd6 {[%clk 0:00:24.4]} 34. Rf1
{[%clk 0:00:22.2]} 34... Ne3+ {[%clk 0:00:25.6]} 35. Kd2 {[%clk 0:00:23.5]}
35... Nxd1 {[%clk 0:00:24.7]} 36. Kxd1 {[%clk 0:00:25.4]} 36... Rf6 {[%clk
0:00:25.3]} 0-1

[Event "*** Titled Tuesday Blitz"]
[Site "Chess.com"]
[Date "2019.05.07"]
[Round "6"]
[White "mitrabhaa"]
[Black "bugsbunny444"]
[Result "1-0"]
[WhiteElo "2665"]
[BlackElo "2563"]
[TimeControl "180+2"]
[EndTime "14:26:27 PDT"]
[Termination "mitrabhaa won by resignation"]

1. d4 {[%clk 0:03:01.3]} 1... e6 {[%clk 0:02:56.9]} 2. Nf3 {[%clk 0:03:02.5]}
2... c5 {[%clk 0:02:57.9]} 3. c3 {[%clk 0:03:03.3]} 3... Nc6 {[%clk 0:02:57.9]}
4. Bf4 {[%clk 0:03:03.3]} 4... Nf6 {[%clk 0:02:58.2]} 5. e3 {[%clk 0:03:04.2]}
5... d5 {[%clk 0:02:57.4]} 6. Nbd2 {[%clk 0:03:04.3]} 6... cxd4 {[%clk
0:02:58.5]} 7. exd4 {[%clk 0:03:04.6]} 7... Nh5 {[%clk 0:02:59.3]} 8. Be3 {[%clk
0:03:06.1]} 8... Bd6 {[%clk 0:02:59.5]} 9. Bd3 {[%clk 0:03:06.9]} 9... Nf4
{[%clk 0:03:00.3]} 10. Bxf4 {[%clk 0:03:08.2]} 10... Bxf4 {[%clk 0:03:01.5]} 11.
O-O {[%clk 0:03:10.1]} 11... O-O {[%clk 0:02:58]} 12. Re1 {[%clk 0:03:09.8]}
12... Qd6 {[%clk 0:02:48.4]} 13. g3 {[%clk 0:03:06.6]} 13... Bh6 {[%clk
0:02:48.8]} 14. Qe2 {[%clk 0:03:07.2]} 14... Bd7 {[%clk 0:02:46.5]} 15. Nf1
{[%clk 0:03:06]} 15... Rae8 {[%clk 0:02:38.1]} 16. h4 {[%clk 0:03:03.9]} 16...
f6 {[%clk 0:02:36.1]} 17. Qc2 {[%clk 0:02:58.1]} 17... e5 {[%clk 0:02:19.4]} 18.
Bxh7+ {[%clk 0:02:55.5]} 18... Kh8 {[%clk 0:02:20.8]} 19. Bg6 {[%clk 0:02:50.2]}
19... Re7 {[%clk 0:02:02.4]} 20. h5 {[%clk 0:02:39.3]} 20... e4 {[%clk
0:01:58.1]} 21. Nh4 {[%clk 0:02:40.2]} 21... f5 {[%clk 0:01:59.6]} 22. Ne3
{[%clk 0:02:40.9]} 22... Bxe3 {[%clk 0:01:35.1]} 23. fxe3 {[%clk 0:02:29.3]}
23... Qxg3+ {[%clk 0:01:25.4]} 24. Ng2 {[%clk 0:02:28.4]} 24... f4 {[%clk
0:01:24.8]} 25. exf4 {[%clk 0:02:29.1]} 25... Rxf4 {[%clk 0:01:20]} 26. Rf1
{[%clk 0:02:28.3]} 26... Rf3 {[%clk 0:01:11.8]} 27. Rf2 {[%clk 0:02:11]} 27...
Bh3 {[%clk 0:01:07.1]} 28. Raf1 {[%clk 0:02:07.4]} 28... Re6 {[%clk 0:00:57.8]}
29. Qe2 {[%clk 0:01:48.9]} 29... Ref6 {[%clk 0:00:43.2]} 30. Rxf3 {[%clk
0:01:47.2]} 30... Rxf3 {[%clk 0:00:43.6]} 31. Rxf3 {[%clk 0:01:47.3]} 31... Qxf3
{[%clk 0:00:37.2]} 32. Qxf3 {[%clk 0:01:47.4]} 32... exf3 {[%clk 0:00:39.1]} 33.
Nf4 {[%clk 0:01:48.1]} 33... Bg4 {[%clk 0:00:25.2]} 34. Nxd5 {[%clk 0:01:47.8]}
34... Be6 {[%clk 0:00:21.7]} 35. Ne3 {[%clk 0:01:44.2]} 35... Bxa2 {[%clk
0:00:22.4]} 36. Kf2 {[%clk 0:01:44.3]} 36... Ne7 {[%clk 0:00:17.9]} 37. Be4
{[%clk 0:01:41.8]} 37... b6 {[%clk 0:00:14]} 38. d5 {[%clk 0:01:33.6]} 38... Nc8
{[%clk 0:00:14.7]} 39. Kxf3 {[%clk 0:01:31.8]} 39... Kg8 {[%clk 0:00:09.5]} 40.
Kf4 {[%clk 0:01:32.1]} 40... Kf7 {[%clk 0:00:10.4]} 41. Ke5 {[%clk 0:01:31.5]}
41... a5 {[%clk 0:00:03.5]} 42. d6 {[%clk 0:01:30]} 42... Be6 {[%clk 0:00:04]}
43. Bg6+ {[%clk 0:01:29.9]} 1-0

[Event "*** Titled Tuesday Blitz"]
[Site "Chess.com"]
[Date "2019.05.07"]
[Round "6"]
[White "Mimsychess"]
[Black "Denis_Palkovich"]
[Result "1-0"]
[WhiteElo "2347"]
[BlackElo "2257"]
[TimeControl "180+2"]
[EndTime "14:26:30 PDT"]
[Termination "Mimsychess won on time"]

1. e4 {[%clk 0:03:01.9]} 1... c6 {[%clk 0:03:00.5]} 2. d4 {[%clk 0:02:59.8]}
2... d5 {[%clk 0:03:01.6]} 3. e5 {[%clk 0:03:00.5]} 3... c5 {[%clk 0:03:02.2]}
4. dxc5 {[%clk 0:03:01.4]} 4... e6 {[%clk 0:03:03]} 5. a3 {[%clk 0:03:02]} 5...
Bxc5 {[%clk 0:03:02.8]} 6. Bd3 {[%clk 0:02:52.3]} 6... Ne7 {[%clk 0:02:56.8]} 7.
Nf3 {[%clk 0:02:53]} 7... Nbc6 {[%clk 0:02:52.8]} 8. O-O {[%clk 0:02:47.3]} 8...
Ng6 {[%clk 0:02:43.9]} 9. Qe2 {[%clk 0:02:45.7]} 9... Nd4 {[%clk 0:02:38]} 10.
Nxd4 {[%clk 0:02:46.4]} 10... Bxd4 {[%clk 0:02:39.1]} 11. c3 {[%clk 0:02:44.6]}
11... Bxe5 {[%clk 0:02:31.9]} 12. Bxg6 {[%clk 0:02:45.4]} 12... Bxh2+ {[%clk
0:02:31.7]} 13. Kxh2 {[%clk 0:02:45.5]} 13... Qh4+ {[%clk 0:02:32.3]} 14. Kg1
{[%clk 0:02:44.2]} 14... hxg6 {[%clk 0:02:33.9]} 15. f4 {[%clk 0:02:44.8]} 15...
Bd7 {[%clk 0:02:02.3]} 16. Nd2 {[%clk 0:02:40.9]} 16... Qh2+ {[%clk 0:01:57.9]}
17. Kf2 {[%clk 0:02:41.7]} 17... Qxf4+ {[%clk 0:01:54.3]} 18. Nf3 {[%clk
0:02:41]} 18... Qa4 {[%clk 0:01:38]} 19. Nd4 {[%clk 0:02:34]} 19... O-O-O {[%clk
0:01:33.9]} 20. Bf4 {[%clk 0:02:23.9]} 20... f6 {[%clk 0:01:24.7]} 21. b3 {[%clk
0:02:05.3]} 21... Qa5 {[%clk 0:01:17.3]} 22. b4 {[%clk 0:01:38.4]} 22... Qb6
{[%clk 0:01:11.3]} 23. a4 {[%clk 0:01:03.7]} 23... e5 {[%clk 0:01:08.2]} 24. a5
{[%clk 0:01:04.7]} 24... Qd6 {[%clk 0:00:54.1]} 25. Bg3 {[%clk 0:00:44.7]} 25...
Qe7 {[%clk 0:00:35.6]} 26. a6 {[%clk 0:00:37.5]} 26... b6 {[%clk 0:00:29.5]} 27.
c4 {[%clk 0:00:19.2]} 27... Qf7 {[%clk 0:00:14.9]} 28. cxd5 {[%clk 0:00:17]}
28... Qxd5 {[%clk 0:00:09.1]} 29. Rac1+ {[%clk 0:00:16.8]} 29... Kb8 {[%clk
0:00:06]} 30. Rfd1 {[%clk 0:00:18.2]} 1-0